bitfinex/quotes_SOLUSD_20240620
["timestamp","ask_amount","ask_price","bid_price","bid_amount"]
[1718860862122,7.396,135.21,135.12,20.0]
[1718860862698,23.9486,135.24,135.13,0.17]
[1718860862904,15.56170002,135.26,135.12,20.0]
[1718860862905,34.04580002,135.26,135.12,20.0]
[1718860863120,34.04580002,135.26,135.13,0.17]
[1718860863319,34.04580002,135.26,135.14,6.5875]
[1718860863320,7.3946,135.24,135.14,6.5875]
[1718860863715,34.04580002,135.26,135.14,6.5875]
[1718860863924,7.396,135.21,135.14,6.5875]
[1718860864134,7.396,135.21,135.12,20.0]
[1718860864135,7.3981,135.17,135.1,6.5875]
[1718860864317,7.3977,135.18,135.11,20.0]
[1718860864626,7.3983,135.17,135.11,20.0]
[1718860864823,0.68,135.16,135.11,20.0]
[1718860865207,8.0788,135.16,135.11,20.0]
[1718860865410,8.0788,135.16,135.1,6.5875]
[1718860865805,7.3994,135.15,135.05,6.919028]
[1718860866023,7.3994,135.15,135.0,10.0]
[1718860866024,0.51,135.14,135.06,26.4807]
[1718860869427,0.51,135.14,135.06,6.4807]
[1718860869428,0.17,135.13,135.06,6.4807]
[1718860870027,18.6707,135.13,135.02,24.5623]
[1718860870229,0.17,135.08,135.02,6.0685]
[1718860871026,0.34,135.09,135.02,6.0685]
[1718860871230,0.17,135.09,135.02,6.0685]
[1718860871927,0.34,135.09,135.02,6.0685]
[1718860872230,7.574,135.07,135.02,6.0685]
[1718860872409,0.17,135.06,135.02,6.0685]
[1718860872614,0.17,135.05,135.02,6.0685]
[1718860873024,0.34,135.05,135.02,5.5685]
[1718860873233,0.17,135.08,135.02,5.5685]
[1718860873413,0.51,135.08,135.02,5.5685]
[1718860873622,0.17,135.06,135.02,5.5685]
[1718860873819,0.34,135.06,135.02,5.5685]
[1718860874611,15.0875,135.15,135.02,5.5685]
[1718860874815,7.4009,135.12,135.02,5.5685]
[1718860875118,7.4016,135.11,135.02,5.5685]
[1718860875318,7.4021,135.1,135.02,5.5685]
[1718860875527,6.1085,135.14,135.02,5.5685]
[1718860875727,7.7017881,135.15,135.04,0.17]
[1718860875913,7.4005,135.13,135.03,20.0]
[1718860876119,7.4009,135.12,135.03,20.0]
[1718860876529,18.4991,135.15,135.03,20.0]
[1718860876714,7.4013,135.12,135.03,20.0]
[1718860877220,7.402,135.1,135.03,20.0]
[1718860877615,0.17,135.09,135.03,20.0]
[1718860877927,0.68,135.09,135.03,20.0]
[1718860878133,7.4042,135.06,135.02,5.5685]
[1718860878342,0.34,135.07,135.02,5.5685]
[1718860878515,0.17,135.06,135.02,5.5685]
[1718860879442,0.17,135.07,135.02,5.0685]
[1718860879733,7.4008,135.12,135.02,5.0685]
[1718860880125,18.4998,135.14,135.02,5.0685]
[1718860880335,215.846,135.16,135.02,5.0685]
[1718860880522,7.4019,135.1,135.02,5.0685]
[1718860880721,7.4004,135.13,135.02,5.0685]
[1718860880921,0.34,135.12,135.03,20.0]
[1718860881617,7.7414,135.11,135.03,20.0]
[1718860881824,0.17,135.1,135.03,20.0]
[1718860882430,0.34,135.1,135.03,20.0]
[1718860882613,0.17,135.08,135.02,5.0685]
[1718860883423,0.17,135.09,135.02,5.0685]
[1718860883651,0.17,135.1,135.02,5.0685]
[1718860883931,0.51,135.1,135.02,5.0685]
[1718860884745,15.846,135.16,135.03,20.0]
[1718860884922,7.70035687,135.18,135.05,0.17]
[1718860885117,24.7186,135.22,135.05,46.3]
[1718860885337,24.7186,135.22,135.07,6.4505]
[1718860885338,7.3965,135.2,135.07,6.4505]
[1718860885518,7.3965,135.2,135.08,20.68]
[1718860885724,7.3971,135.19,135.08,20.68]
[1718860886024,7.3977,135.18,135.08,20.68]
[1718860886234,24.7186,135.22,135.08,20.68]
[1718860886235,7.3966,135.2,135.08,20.68]
[1718860886440,7.69764661,135.24,135.09,6.4505]
[1718860886744,6.229,135.26,135.1,20.68]
[1718860887226,24.712,135.26,135.1,20.68]
[1718860887716,7.3956,135.22,135.1,20.68]
[1718860887917,18.4859,135.24,135.1,20.17]
[1718860888224,7.3959,135.21,135.1,20.17]
[1718860888527,7.3955,135.22,135.1,20.17]
[1718860888846,7.3944,135.24,135.1,20.17]
[1718860889136,41.47754572,135.27,135.13,0.17]
[1718860889137,15.08844572,135.27,135.13,0.17]
[1718860889316,15.08844572,135.27,135.15,0.17]
[1718860889317,7.69584572,135.27,135.15,0.17]
[1718860889520,7.3924,135.28,135.15,20.68]
[1718860889936,24.5829,135.3,135.15,20.68]
[1718860890341,7.3942,135.24,135.15,20.17]
[1718860890528,18.4802,135.28,135.15,20.17]
[1718860890529,0.68,135.23,135.15,20.0]
[1718860890736,18.4802,135.28,135.15,20.0]
[1718860890928,0.17,135.24,135.15,20.0]
[1718860891128,8.0743,135.24,135.15,20.0]
[1718860891427,0.17,135.23,135.15,20.0]
[1718860891636,0.34,135.23,135.15,20.0]
[1718860891844,0.17,135.23,135.15,20.0]
[1718860892023,0.34,135.23,135.15,20.0]
[1718860892224,0.17,135.22,135.15,20.0]
[1718860893123,0.34,135.23,135.15,20.0]
[1718860893329,0.17,135.23,135.15,20.0]
[1718860893538,8.0743,135.24,135.15,20.0]
[1718860893739,0.68,135.24,135.15,20.0]
[1718860893940,7.3937,135.26,135.16,0.17]
[1718860894145,18.4805,135.28,135.15,20.0]
[1718860894825,7.3946,135.24,135.15,20.0]
[1718860895547,0.68,135.23,135.15,20.0]
[1718860895949,7.3953,135.22,135.15,19.5]
[1718860896244,0.51,135.21,135.15,19.5]
[1718860897045,7.9059,135.21,135.15,19.5]
[1718860897825,7.5668,135.2,135.14,6.4484]
[1718860898146,18.4876,135.23,135.06,6.2259]
[1718860898147,7.3984,135.17,135.06,6.2259]
[1718860898544,0.51,135.16,135.06,6.2259]
[1718860899346,0.51,135.16,135.07,20.0]
[1718860899555,0.17,135.15,135.06,6.2259]
[1718860900629,7.5692,135.15,135.06,6.2259]
[1718860900831,0.51,135.14,135.06,6.2259]
[1718860901730,7.3975,135.18,135.07,0.17]
[1718860901933,0.68,135.17,135.07,0.17]
[1718860902254,60.0952012,135.22,135.07,0.17]
[1718860902441,7.3975,135.18,135.06,6.2259]
[1718860902757,45.0,135.17,135.07,20.0]
[1718860903128,18.4928,135.19,135.07,20.0]
[1718860903326,7.3991,135.15,135.07,20.0]
[1718860903528,0.51,135.14,135.07,20.0]
[1718860906744,0.17,135.13,135.07,20.0]
[1718860907055,0.17,135.13,135.06,6.2259]
[1718860907259,0.51,135.14,135.06,6.2259]
[1718860910251,38.4898,135.21,135.07,20.0]
[1718860910448,7.3976,135.18,135.07,20.0]
[1718860910959,7.3982,135.17,135.07,20.0]
[1718860911343,0.17,135.16,135.07,20.0]
[1718860911543,7.3998,135.14,135.07,20.0]
[1718860912258,7.9094,135.15,135.07,20.0]
[1718860912674,0.51,135.15,135.07,20.0]
[1718860912838,7.6987289,135.18,135.07,20.0]
[1718860913040,7.6987289,135.18,135.08,0.17]
[1718860913253,27.3961,135.21,135.09,6.5464]
[1718860913543,7.3967,135.2,135.09,6.5464]
[1718860913952,7.397,135.19,135.09,6.5464]
[1718860914649,0.68,135.18,135.09,6.5464]
[1718860915468,7.3981,135.17,135.09,6.5464]
[1718860915646,7.5693,135.15,135.09,6.5464]
[1718860915844,7.7387,135.16,135.09,6.5464]
[1718860916050,0.51,135.15,135.09,6.5464]
[1718860916868,7.5681,135.17,135.09,6.5464]
[1718860917046,0.34,135.16,135.09,6.5464]
[1718860917464,7.7388,135.16,135.09,6.5464]
[1718860917662,0.17,135.15,135.09,6.5464]
[1718860917964,7.5692,135.15,135.09,6.5464]
[1718860918966,0.34,135.14,135.09,6.5464]
[1718860919170,7.7398,135.14,135.09,6.5464]
[1718860919475,7.7404,135.13,135.09,6.5464]
[1718860919659,0.34,135.12,135.09,6.5464]
[1718860919972,0.17,135.11,135.02,6.3875]
[1718860920202,0.17,135.11,135.03,20.0]
[1718860922663,7.7415,135.11,135.03,20.0]
[1718860922870,0.51,135.1,135.03,20.0]
[1718860923058,0.17,135.09,135.03,20.0]
[1718860924159,0.34,135.09,135.02,6.3875]
[1718860924349,0.51,135.08,135.02,6.3875]
[1718860924550,0.17,135.07,135.02,6.3875]
[1718860925871,0.34,135.07,135.02,6.3875]
[1718860926071,0.17,135.06,135.02,6.3875]
[1718860928075,0.17,135.06,134.93,272.1045]
[1718860928076,0.17,135.04,134.97,6.0748]
[1718860928261,7.4065,135.02,134.97,6.0748]
[1718860928453,7.7458,135.03,134.97,6.0748]
[1718860928659,0.34,135.03,134.97,6.0748]
[1718860929564,0.17,135.03,134.97,6.0748]
[1718860929771,7.4036,135.07,134.97,6.0748]
[1718860929978,7.4041,135.06,134.98,20.0]
[1718860930665,7.4048,135.05,134.98,20.0]
[1718860930965,0.17,135.08,134.98,20.0]
[1718860931167,0.17,135.06,134.98,20.0]
[1718860931351,0.68,135.06,134.98,20.0]
[1718860931553,8.0841,135.06,134.98,20.0]
[1718860931872,7.4047,135.05,134.97,6.0748]
[1718860932170,0.51,135.04,134.97,6.0748]
[1718860932377,0.17,135.03,134.97,6.0748]
[1718860932565,0.51,135.04,134.97,6.0748]
[1718860934081,7.5758,135.03,134.97,6.0748]
[1718860934263,0.34,135.02,134.97,6.0748]
[1718860935474,0.17,135.01,134.97,6.0748]
[1718860935792,0.34,135.01,134.97,6.0748]
[1718860935978,0.17,135.02,134.97,6.0748]
[1718860936161,0.34,135.02,134.97,6.0748]
[1718860940391,7.70390946,135.08,134.98,20.0]
[1718860940593,15.10700946,135.08,134.98,20.0]
[1718860940767,7.4031,135.08,134.98,20.0]
[1718860941669,0.17,135.07,134.98,20.0]
[1718860941880,0.68,135.07,134.98,20.0]
[1718860942281,38.90115254,135.12,134.98,20.0]
[1718860942471,38.90115254,135.12,134.96,0.17]
[1718860942472,15.10271833,135.12,135.01,6.325]
[1718860942668,15.10271833,135.12,135.03,6.2393]
[1718860942669,7.4008,135.12,135.03,6.2393]
[1718860942966,42.95840002,135.17,135.03,6.2393]
[1718860942967,7.4028,135.09,135.03,6.2393]
[1718860943169,18.5025,135.12,135.03,6.2393]
[1718860943368,7.4031,135.08,135.03,6.2393]
[1718860943583,7.4025,135.09,135.03,6.2393]
[1718860944090,0.34,135.08,135.03,6.2393]
[1718860946587,0.17,135.09,135.03,6.2393]
[1718860946779,0.17,135.14,135.03,6.2393]
[1718860946967,7.4004,135.13,135.04,20.0]
[1718860947166,7.4009,135.12,135.04,20.0]
[1718860947486,7.4016,135.11,135.04,20.0]
[1718860947689,7.402,135.1,135.04,20.0]
[1718860948077,7.4015,135.11,135.04,20.0]
[1718860948261,0.17,135.1,135.04,20.0]
[1718860948590,7.4011,135.12,135.04,20.0]
[1718860948779,0.34,135.11,135.04,20.0]
[1718860949086,0.34,135.12,135.04,20.0]
[1718860949290,7.5715,135.11,135.04,20.0]
[1718860949786,0.17,135.11,135.04,20.0]
[1718860951090,7.7418,135.11,135.04,20.0]
[1718860951290,7.7421,135.1,135.03,6.2393]
[1718860951495,0.17,135.09,135.03,6.2393]
[1718860951668,0.34,135.1,135.03,6.2393]
[1718860952682,0.17,135.1,135.03,6.2393]
[1718860952876,0.34,135.11,135.03,6.2393]
[1718860953191,0.17,135.1,135.03,6.2393]
[1718860953881,0.34,135.11,135.03,6.2393]
[1718860955792,7.7414,135.11,135.03,6.2393]
[1718860956487,0.34,135.11,135.03,6.2393]
[1718860956991,0.17,135.1,135.03,6.2393]
[1718860957304,7.7419,135.1,135.03,6.2393]
[1718860957503,0.17,135.09,135.03,6.2393]
[1718860957794,0.34,135.09,135.03,6.2393]
[1718860957983,0.17,135.1,135.03,6.2393]
[1718860958189,0.17,135.09,135.03,6.2393]
[1718860958376,0.34,135.09,135.03,6.2393]
[1718860958569,0.34,135.08,135.03,6.2393]
[1718860958779,7.5738,135.07,135.03,6.2393]
[1718860958980,0.17,135.07,135.03,6.2393]
[1718860959180,0.34,135.08,135.03,6.2393]
[1718860959686,0.17,135.09,135.03,6.2393]
[1718860959880,0.34,135.09,135.03,6.2393]
[1718860960082,0.51,135.1,135.03,6.2393]
[1718860960277,7.4003,135.13,135.03,6.2393]
[1718860960500,7.4003,135.13,135.04,0.17]
[1718860961922,0.34,135.12,135.03,6.2393]
[1718860962092,7.4015,135.11,135.03,6.2393]
[1718860962294,7.9119,135.1,135.03,6.2393]
[1718860962613,7.5719,135.1,135.03,6.2393]
[1718860963216,0.17,135.1,135.03,6.2393]
[1718860963585,7.572,135.1,135.03,6.2393]
[1718860964111,0.34,135.09,135.03,6.2393]
[1718860965701,7.401,135.12,135.03,6.2393]
[1718860965900,7.5709,135.12,135.03,6.2393]
[1718860966103,7.7415,135.11,135.03,6.2393]
[1718860966285,0.34,135.1,135.03,6.2393]
[1718860966602,0.34,135.09,135.03,6.2393]
[1718860970892,7.573,135.08,135.03,6.2393]
[1718860971301,0.17,135.08,135.03,6.2393]
[1718860972006,7.743,135.08,135.03,6.2393]
[1718860972192,0.34,135.07,135.03,6.2393]
[1718860972988,0.17,135.06,134.99,22.14]
[1718860973207,0.17,135.06,135.0,6.5983]
[1718860973415,0.34,135.07,135.0,6.5983]
[1718860975416,22.14,135.12,135.0,6.5983]
[1718860975630,35.1224,135.14,135.01,20.0]
[1718860975631,0.17,135.1,135.01,20.0]
[1718860975815,7.4026,135.09,135.01,20.0]
[1718860976118,7.913,135.08,135.01,20.0]
[1718860976296,0.51,135.08,135.0,6.5983]
[1718860977615,7.5738,135.07,135.0,6.5983]
[1718860977816,0.17,135.06,135.0,6.5983]
[1718860978017,0.34,135.06,135.0,6.5983]
[1718860978315,0.51,135.06,135.0,6.5983]
[1718860978516,0.17,135.05,135.0,6.5983]
[1718860978719,0.51,135.05,135.0,6.5983]
[1718860979023,0.17,135.04,135.0,6.5983]
[1718860979317,0.34,135.04,135.0,6.5983]
[1718860979517,7.4032,135.08,135.0,6.5983]
[1718860979821,0.17,135.07,135.0,6.5983]
[1718860980004,0.68,135.07,135.0,6.5983]
[1718860981425,8.0836,135.07,135.0,6.5983]
[1718860981922,0.68,135.07,135.0,6.5983]
[1718860982226,7.4022,135.1,135.0,6.5983]
[1718860982519,7.4027,135.09,135.0,6.5983]
[1718860982903,7.4016,135.11,135.0,6.5983]
[1718860983322,0.17,135.09,135.01,20.0]
[1718860983618,18.5021,135.12,135.01,20.0]
[1718860983797,7.4029,135.09,135.01,20.0]
[1718860983999,48.58719599,135.14,135.01,20.0]
[1718860984000,7.4016,135.11,135.01,20.0]
[1718860984308,40.8863184,135.14,135.01,20.0]
[1718860984523,7.4026,135.09,135.01,20.0]
[1718860984904,0.17,135.08,135.01,20.0]
[1718860985121,0.34,135.08,135.01,20.0]
[1718860985323,7.7431,135.08,135.01,20.0]
[1718860985510,0.17,135.07,135.01,20.0]
[1718860985714,7.4044,135.06,135.0,6.5983]
[1718860985921,7.7447,135.05,135.0,6.5983]
[1718860986502,7.4052,135.04,135.0,6.5983]
[1718860986723,0.34,135.05,135.0,6.5983]
[1718860987832,0.17,135.04,135.0,6.5983]
[1718860988024,0.34,135.04,135.0,6.5983]
[1718860988235,0.17,135.02,134.97,22.14]
[1718860988418,0.17,135.02,134.96,6.0672]
[1718860988419,0.51,135.02,134.96,6.0672]
[1718860988620,0.17,135.01,134.96,6.0672]
[1718860988924,0.34,135.01,134.96,6.0672]
[1718860990307,16.1305,135.08,134.96,6.0672]
[1718860990524,6.081,135.1,134.97,42.14]
[1718860990725,7.403,135.08,134.97,42.31]
[1718860991040,18.5061,135.09,134.97,42.14]
[1718860991213,7.4044,135.06,134.97,42.14]
[1718860991413,7.4037,135.07,134.97,42.14]
[1718860991821,8.0841,135.06,134.98,22.14]
[1718860992026,8.0841,135.06,134.99,20.0]
[1718860992708,8.0841,135.06,134.98,20.0]
[1718860993324,0.68,135.06,134.98,20.0]
[1718860994114,12.03021059,135.1,134.98,20.0]
[1718860994426,13.35131059,135.1,135.0,6.1947]
[1718860995247,7.4019,135.1,135.0,6.1947]
[1718860995427,7.5726,135.09,135.0,6.1947]
[1718860995610,0.51,135.08,135.0,6.1947]
[1718860995809,0.17,135.07,135.0,6.1947]
[1718860998312,0.34,135.08,135.0,6.1947]
[1718860998531,0.34,135.08,135.0,28.3347]
[1718860999917,16.31680002,135.14,135.02,0.17]
[1718861000115,8.91660002,135.14,135.03,28.1414]
[1718861000420,7.4003,135.13,135.03,28.1414]
[1718861000811,7.4017,135.11,135.03,28.1414]
[1718861001111,7.401,135.12,135.03,28.1414]
[1718861001320,18.4996,135.14,135.03,6.0014]
[1718861001640,7.5716,135.11,135.03,6.0014]
[1718861001813,0.17,135.13,135.04,20.0]
[1718861002730,7.5702,135.13,135.04,20.0]
[1718861002938,7.69890891,135.16,135.05,6.3891]
[1718861003234,6.52149346,135.2,135.08,22.31]
[1718861003235,7.3965,135.2,135.08,22.31]
[1718861003433,73.92800544,135.23,135.09,26.3891]
[1718861003434,7.396,135.21,135.09,26.3891]
[1718861003823,7.3964,135.2,135.09,26.3891]
[1718861004123,25.24280002,135.23,135.12,6.122]
[1718861004333,7.3966,135.2,135.13,20.0]
[1718861004537,43.73100002,135.23,135.13,20.0]
[1718861004718,7.3967,135.2,135.13,20.0]
[1718861004919,7.3967,135.2,135.12,6.122]
[1718861005319,43.73100002,135.23,135.12,6.122]
[1718861005320,0.68,135.19,135.12,6.122]
[1718861006827,7.3957,135.22,135.12,6.122]
[1718861007018,7.5663,135.21,135.12,6.122]
[1718861007226,0.34,135.2,135.12,6.122]
[1718861007523,0.34,135.19,135.12,6.122]
[1718861007742,0.17,135.18,135.12,6.122]
[1718861009237,0.34,135.18,135.12,6.122]
[1718861009449,0.34,135.17,135.12,6.122]
[1718861009633,0.17,135.16,135.12,6.122]
[1718861010749,0.17,135.17,135.12,6.122]
[1718861010915,0.17,135.22,135.12,6.122]
[1718861011121,32.63780002,135.23,135.12,6.122]
[1718861011449,7.3954,135.22,135.13,20.0]
[1718861011817,7.3959,135.21,135.13,20.0]
[1718861012013,16.3262,135.23,135.13,20.0]
[1718861012241,7.3953,135.22,135.13,20.0]
[1718861012422,0.68,135.21,135.13,20.0]
[1718861013842,16.3262,135.23,135.13,20.0]
[1718861013843,7.3932,135.26,135.15,6.3982]
[1718861014019,22.64869346,135.28,135.15,6.3982]
[1718861014020,7.3925,135.28,135.16,20.0]
[1718861014222,7.3926,135.27,135.17,28.5382]
[1718861015034,7.3932,135.26,135.17,28.5382]
[1718861015234,7.3937,135.25,135.17,28.5382]
[1718861015640,0.34,135.24,135.17,28.5382]
[1718861016025,7.3919,135.29,135.17,28.5382]
[1718861016234,23.43162806,135.3,135.18,20.0]
[1718861016633,7.3924,135.28,135.18,20.0]
[1718861016839,23.43162806,135.3,135.18,20.0]
[1718861017232,7.3922,135.28,135.18,20.0]
[1718861017434,0.17,135.27,135.18,20.0]
[1718861017634,0.68,135.27,135.18,20.0]
[1718861017846,8.0727,135.27,135.18,20.0]
[1718861018537,0.68,135.27,135.18,20.0]
[1718861019251,8.0727,135.27,135.18,20.0]
[1718861019452,7.3933,135.26,135.18,20.0]
[1718861019630,0.51,135.25,135.18,20.0]
[1718861019831,0.34,135.25,135.18,20.0]
[1718861020033,0.51,135.26,135.18,20.0]
[1718861020232,0.17,135.25,135.18,20.0]
[1718861020771,0.17,135.24,135.18,20.0]
[1718861020951,0.17,135.24,135.17,28.5382]
[1718861020952,0.17,135.25,135.17,28.5382]
[1718861021270,0.17,135.24,135.17,28.5382]
[1718861021569,7.3954,135.22,135.17,6.3982]
[1718861021787,0.34,135.24,135.17,6.3982]
[1718861022063,0.34,135.23,135.17,6.3982]
[1718861022243,0.17,135.22,135.17,6.3982]
[1718861022632,0.34,135.22,135.17,6.3982]
[1718861022844,0.17,135.22,135.17,6.3982]
[1718861023227,0.34,135.23,135.17,6.3982]
[1718861023428,0.17,135.22,135.17,6.3982]
[1718861023650,0.34,135.22,135.17,6.3982]
[1718861023859,0.34,135.21,135.17,6.3982]
[1718861024346,0.17,135.21,135.17,6.3982]
[1718861024561,0.17,135.22,135.17,6.3982]
[1718861024732,0.34,135.22,135.17,6.3982]
[1718861025333,7.3938,135.25,135.17,6.3982]
[1718861025530,0.17,135.23,135.17,6.3982]
[1718861025732,7.5649,135.23,135.17,6.3982]
[1718861025962,0.17,135.22,135.17,6.3982]
[1718861026138,0.17,135.21,135.17,6.3982]
[1718861026528,0.17,135.22,135.17,6.3982]
[1718861026759,8.0753,135.22,135.17,6.3982]
[1718861026930,7.396,135.21,135.17,6.3982]
[1718861027137,0.17,135.21,135.17,6.3982]
[1718861027431,0.34,135.21,135.17,6.3982]
[1718861027632,0.17,135.2,135.17,6.3982]
[1718861027933,7.3977,135.18,135.12,6.344]
[1718861028145,0.51,135.17,135.12,6.344]
[1718861029457,52.5665,135.2,135.12,6.344]
[1718861029764,0.51,135.19,135.12,6.344]
[1718861030529,0.34,135.19,135.12,6.344]
[1718861030963,0.34,135.19,135.12,28.484]
[1718861031252,7.3959,135.21,135.13,20.0]
[1718861031629,7.3974,135.19,135.13,20.0]
[1718861031829,7.3974,135.19,135.12,28.484]
[1718861032435,0.17,135.18,135.12,6.344]
[1718861032652,0.34,135.18,135.12,6.344]
[1718861032848,0.34,135.17,135.12,6.344]
[1718861033053,0.17,135.17,135.12,6.344]
[1718861033258,0.17,135.18,135.12,6.344]
[1718861033556,0.17,135.17,135.12,6.344]
[1718861034350,7.5681,135.17,135.12,6.344]
[1718861034559,0.51,135.16,135.12,6.344]
[1718861035730,0.17,135.15,135.07,6.4664]
[1718861035931,52.5696,135.15,135.07,6.4664]
[1718861036151,0.17,135.13,135.07,6.4664]
[1718861038044,7.4016,135.11,135.07,6.4664]
[1718861038247,0.34,135.1,135.07,6.4664]
[1718861038554,0.17,135.13,135.07,6.4664]
[1718861038749,0.17,135.12,135.07,6.4664]
[1718861038937,0.17,135.11,135.07,6.4664]
[1718861039138,0.51,135.11,135.07,6.4664]
[1718861039932,0.17,135.1,135.07,6.4664]
[1718861040138,0.51,135.11,135.07,6.4664]
[1718861040653,0.51,135.11,135.03,6.2673]
[1718861040654,0.17,135.1,135.03,6.2673]
[1718861041239,0.17,135.07,135.03,6.2673]
[1718861041445,0.51,135.07,134.99,6.2673]
[1718861041750,0.17,135.06,134.99,6.2673]
[1718861041955,0.34,135.07,134.99,6.2673]
[1718861042159,0.17,135.06,134.99,6.2673]
[1718861042353,0.68,135.06,134.99,6.2673]
[1718861042760,8.0841,135.06,134.99,6.2673]
[1718861042964,0.68,135.06,134.99,6.2673]
[1718861043572,0.17,135.06,134.99,6.2673]
[1718861043749,0.17,135.08,134.99,6.2673]
[1718861043951,0.68,135.08,134.99,6.2673]
[1718861044254,0.17,135.06,134.99,6.2673]
[1718861044457,0.68,135.06,134.99,6.2673]
[1718861045164,0.51,135.06,134.99,6.2673]
[1718861045564,0.17,135.05,134.99,6.2673]
[1718861045771,0.68,135.05,134.99,6.2673]
[1718861047865,8.0851,135.05,134.99,6.2673]
[1718861048369,0.68,135.05,134.99,6.2673]
[1718861048745,0.68,135.05,134.96,28.7293]
[1718861048950,0.68,135.05,134.9,6.5893]
[1718861049144,0.17,135.01,134.91,20.0]
[1718861049344,0.34,135.01,134.92,22.14]
[1718861049551,0.34,135.01,134.93,20.0]
[1718861049752,0.17,135.0,134.93,20.0]
[1718861050061,0.17,135.01,134.93,20.0]
[1718861050261,0.34,135.01,134.93,20.0]
[1718861050461,0.34,135.0,134.93,20.0]
[1718861056160,0.17,135.01,134.93,20.0]
[1718861056361,0.34,135.01,134.93,20.0]
[1718861056670,0.17,135.0,134.93,20.0]
[1718861057375,0.34,135.0,134.93,20.0]
[1718861057567,0.34,134.99,134.91,20.0]
[1718861058159,0.17,135.0,134.91,20.0]
[1718861059053,0.34,135.01,134.91,20.0]
[1718861059259,0.34,135.01,134.93,22.14]
[1718861059460,0.34,135.01,134.94,20.0]
[1718861059769,22.9681,135.04,134.96,22.14]
[1718861059970,16.4347,135.04,134.97,20.0]
[1718861060184,15.1562,135.07,134.97,20.0]
[1718861061273,7.4043,135.06,134.97,20.0]
[1718861061480,22.5598,135.07,134.97,20.0]
[1718861061856,0.51,135.06,134.97,20.0]
[1718861064198,40.6447,135.11,134.97,20.0]
[1718861064199,18.5006,135.14,134.99,22.14]
[1718861064404,18.5006,135.14,135.0,20.17]
[1718861064405,23.7977,135.11,135.0,20.17]
[1718861064688,24.0885496,135.15,135.05,22.14]
[1718861064897,23.7956,135.15,135.06,20.0]
[1718861065285,7.3997,135.14,135.06,20.0]
[1718861065693,7.4015,135.11,135.01,6.4374]
[1718861065874,7.4015,135.11,135.02,42.14]
[1718861066280,7.4009,135.12,135.02,42.14]
[1718861066479,7.4008,135.12,135.02,20.0]
[1718861066882,0.68,135.11,135.02,20.0]
[1718861067263,7.5701,135.14,135.02,20.0]
[1718861067470,0.51,135.13,135.02,20.0]
[1718861067786,7.5708,135.12,135.02,20.0]